bitfinex/quotes_ETHUSD_20250319
["timestamp","ask_amount","ask_price","bid_price","bid_amount"]
[1742411047140,7.89283,2043.9,2043.4,0.55]
[1742411047330,7.89283,2043.9,2043.3,0.7826]
[1742411047331,4.89371,2043.5,2043.3,0.7826]
[1742411047669,4.8926,2043.9,2043.3,0.7826]
[1742411047841,4.89329,2043.7,2043.4,0.55]
[1742411048027,5.6822,2043.8,2043.4,0.55]
[1742411048227,0.78926,2043.8,2043.4,0.55]
[1742411048728,4.89274,2043.9,2043.4,0.55]
[1742411048924,3.0,2044.0,2043.4,0.55]
[1742411049160,3.0,2044.1,2043.4,0.55]
[1742411049368,7.89223,2044.1,2043.4,0.55]
[1742411049665,9.78169,2044.7,2043.7,0.55]
[1742411049862,4.8908,2044.7,2043.9,0.55]
[1742411050167,4.89048,2044.8,2044.1,0.55]
[1742411050371,5.4154766,2044.9,2044.1,0.55]
[1742411050672,4.8913,2044.5,2044.1,0.55]
[1742411050844,10.27175,2044.5,2044.1,0.55]
[1742411051159,4.89189,2044.2,2044.0,0.8045]
[1742411051336,4.89223,2044.1,2043.8,0.55]
[1742411051541,3.0,2044.1,2043.7,0.8256]
[1742411052123,4.05546852,2044.7,2043.7,0.8256]
[1742411052124,3.0,2044.8,2043.8,0.55]
[1742411052322,5.86088266,2044.7,2043.8,0.55]
[1742411052545,3.0,2044.6,2043.9,0.55]
[1742411052766,4.89081,2044.7,2044.1,0.55]
[1742411052965,4.89065,2044.8,2044.1,0.55]
[1742411053173,4.89025,2044.9,2044.1,0.55]
[1742411053366,6.175,2045.0,2044.3,0.55]
[1742411053662,4.89043,2044.9,2044.3,0.55]
[1742411054058,4.595443,2045.0,2044.3,0.55]
[1742411054229,4.89024,2044.9,2044.3,0.55]
[1742411054783,4.89025,2044.9,2044.3,0.55]
[1742411055469,4.89067,2044.8,2044.3,0.55]
[1742411055681,5.379857,2044.7,2044.3,0.55]
[1742411056031,3.0,2045.2,2044.5,0.55]
[1742411056336,4.88967,2045.2,2044.7,0.55]
[1742411056545,19.59291,2045.5,2044.7,0.55]
[1742411056745,4.88872,2045.6,2044.9,0.55]
[1742411056960,6.483782,2045.6,2044.9,0.55]
[1742411057231,4.88881,2045.5,2044.9,0.55]
[1742411057633,20.37781,2046.2,2045.1,0.55]
[1742411057834,20.37781,2046.2,2045.3,1.3634]
[1742411057835,14.704,2046.2,2045.3,1.3634]
[1742411058075,4.88734,2046.1,2045.3,1.3634]
[1742411058289,4.88745,2046.1,2045.3,1.3634]
[1742411058597,4.88711,2046.2,2045.3,0.55]
[1742411058746,4.88711,2046.2,2045.5,0.55]
[1742411059094,7.88686,2046.3,2045.5,0.55]
[1742411059243,4.88591,2046.7,2045.8,0.8274]
[1742411059450,4.88559,2046.9,2046.1,0.55]
[1742411059649,0.488559,2046.8,2046.1,0.55]
[1742411060088,4.88554,2046.9,2046.3,0.55]
[1742411060287,14.29216852,2047.3,2046.5,0.55]
[1742411060500,4.88539,2047.0,2046.5,0.55]
[1742411060857,7.88546,2046.9,2046.5,0.55]
[1742411061100,1.277085,2046.8,2046.5,0.55]
[1742411061304,4.88578,2046.8,2046.5,0.55]
[1742411061601,4.88548,2046.9,2046.5,0.55]
[1742411061763,4.88464,2047.3,2046.5,0.55]
[1742411062114,14.704,2047.4,2046.5,0.55]
[1742411062115,4.88497,2047.1,2046.5,0.55]
[1742411062267,5.862198,2047.0,2046.5,0.55]
[1742411062468,0.976988,2047.0,2046.5,0.55]
[1742411062677,14.704,2047.4,2046.5,0.55]
[1742411062879,4.88472,2047.2,2046.5,0.55]
[1742411063175,4.88472,2047.2,2046.4,0.7524]
[1742411063176,4.88604,2046.7,2046.4,0.7524]
[1742411063573,4.88618,2046.6,2046.4,0.7524]
[1742411063779,4.88639,2046.5,2046.4,0.7524]
[1742411063975,0.977257,2046.5,2046.4,0.7524]
[1742411064208,0.977257,2046.5,2046.4,1.3024]
[1742411064415,4.88615,2046.6,2046.4,1.3024]
[1742411064574,4.88639,2046.5,2046.4,1.3024]
[1742411064910,4.88615,2046.6,2046.4,1.3024]
[1742411065405,4.88615,2046.6,2046.5,0.55]
[1742411065590,7.88563,2046.9,2046.5,0.55]
[1742411065906,5.674303,2046.8,2046.5,0.55]
[1742411066065,4.88592,2046.7,2046.5,0.55]
[1742411066266,4.88639,2046.5,2046.4,0.7524]
[1742411066515,4.88639,2046.5,2046.1,0.55]
[1742411066862,4.88617,2046.6,2046.1,0.55]
[1742411067064,4.88617,2046.6,2045.7,3.0]
[1742411067065,0.788563,2046.8,2046.3,0.55]
[1742411067309,7.88554,2046.9,2046.3,0.55]
[1742411067972,9.77065,2047.0,2046.3,0.55]
[1742411068328,4.88596,2046.7,2046.3,0.55]
[1742411068615,9.77115,2046.9,2046.3,0.55]
[1742411068770,6.162815,2046.8,2046.3,0.55]
[1742411068972,3.0,2047.0,2046.3,0.55]
[1742411069195,9.77013,2047.1,2046.5,0.55]
[1742411069394,4.88506,2047.1,2046.5,0.55]
[1742411069623,4.88461,2047.3,2046.7,0.55]
[1742411069807,1.958861,2047.2,2046.9,0.55]
[1742411070111,4.88461,2047.3,2046.9,0.55]
[1742411070316,4.88454,2047.3,2046.9,0.55]
[1742411070605,4.88401,2047.5,2046.9,0.55]
[1742411070815,4.88519,2047.0,2046.9,0.55]
[1742411071014,5.373709,2047.0,2046.8,0.7653]
[1742411071217,4.88496,2047.1,2046.9,0.55]
[1742411071585,4.88519,2047.0,2046.9,0.55]
[1742411071785,4.88543,2046.9,2046.8,1.3153]
[1742411072211,4.88632,2046.6,2046.5,0.773]
[1742411072387,5.863519,2046.6,2046.5,0.773]
[1742411072720,4.88675,2046.4,2045.9,0.773]
[1742411072888,4.88697,2046.3,2045.9,3.773]
[1742411073085,4.88697,2046.3,2046.0,0.55]
[1742411073456,4.88745,2046.1,2045.9,0.773]
[1742411073798,4.88758,2046.0,2045.9,0.773]
[1742411074021,5.864905,2046.1,2045.4,0.8132]
[1742411074022,4.88842,2045.7,2045.4,0.8132]
[1742411074222,4.88773,2046.0,2045.5,0.55]
[1742411074543,6.9908,2046.5,2045.6,0.8132]
[1742411074699,4.88759,2046.0,2045.6,0.8132]
[1742411075107,4.88759,2046.0,2045.7,0.55]
[1742411075300,4.88778,2046.0,2045.7,0.55]
[1742411075514,4.88731,2046.2,2045.7,0.55]
[1742411075515,4.88734,2046.1,2045.7,0.55]
[1742411075708,4.88776,2046.0,2045.7,0.55]
[1742411076043,4.88806,2045.8,2045.7,0.55]
[1742411076194,4.8883,2045.7,2045.6,0.8132]
[1742411076403,4.88901,2045.4,2045.3,6.8563]
[1742411076646,4.88973,2045.1,2045.0,6.8563]
[1742411076938,4.89021,2044.9,2044.7,0.7963]
[1742411077157,4.89045,2044.8,2044.7,0.7963]
[1742411077500,4.89021,2044.9,2044.7,0.7963]
[1742411077702,4.89045,2044.8,2044.7,0.7963]
[1742411077897,4.89142,2044.4,2044.2,0.8019]
[1742411078140,4.8911,2044.6,2044.2,0.8019]
[1742411078324,4.89069,2044.7,2044.2,0.8019]
[1742411078506,4.89146,2044.4,2044.2,0.8019]
[1742411078713,4.89164,2044.3,2044.2,0.8019]
[1742411079444,4.89207,2044.2,2043.9,0.7881]
[1742411079602,4.89218,2044.1,2043.9,0.7881]
[1742411079803,0.97831,2044.3,2043.6,0.7824]
[1742411079804,4.89276,2043.9,2043.6,0.7824]
[1742411080029,4.89238,2044.0,2043.6,0.7824]
[1742411080302,4.89213,2044.1,2043.7,0.55]
[1742411080506,4.89202,2044.2,2043.7,0.55]
[1742411080711,0.489202,2044.2,2043.6,0.7824]
[1742411080942,4.89296,2043.8,2043.6,0.7824]
[1742411081433,4.8932,2043.7,2043.3,0.7945]
[1742411081773,8.12703852,2044.0,2043.4,0.55]
[1742411082074,8.12703852,2044.0,2043.3,0.7945]
[1742411082075,4.8938,2043.4,2043.3,0.7945]
[1742411082368,4.89356,2043.5,2043.3,0.7945]
[1742411082668,4.89268,2043.9,2043.4,0.55]
[1742411082965,9.78542,2043.9,2043.4,0.55]
[1742411083142,4.89285,2043.8,2043.4,0.55]
[1742411083344,4.89232,2044.1,2043.4,0.55]
[1742411083540,4.89181,2044.3,2043.6,3.55]
[1742411083743,4.89132,2044.5,2043.9,0.7996]
[1742411083980,4.89132,2044.5,2044.0,0.55]
[1742411084135,4.89153,2044.4,2044.0,0.55]
[1742411084334,9.78272,2044.5,2044.0,0.55]
[1742411084656,4.89132,2044.5,2044.0,0.55]
[1742411084839,4.89088,2044.7,2044.2,0.55]
[1742411085062,4.89114,2044.6,2044.3,6.06]
[1742411085263,4.89088,2044.7,2044.4,0.55]
[1742411085470,4.89081,2044.7,2044.4,6.61]
[1742411085962,9.78165,2044.7,2044.4,6.61]
[1742411086278,4.89081,2044.7,2044.4,6.61]
[1742411086572,4.89001,2045.0,2044.6,0.55]
[1742411086863,6.9694,2045.3,2044.8,0.55]
[1742411086864,4.88943,2045.3,2044.8,0.55]
[1742411087049,4.88888,2045.5,2045.0,0.55]
[1742411087427,9.77777,2045.5,2045.2,0.55]
[1742411087627,4.88888,2045.5,2045.2,0.55]
[1742411087827,4.88949,2045.2,2045.1,0.8182]
[1742411088064,4.88949,2045.2,2044.9,6.06]
[1742411088065,4.88997,2045.0,2044.9,6.06]
[1742411088634,4.88984,2045.1,2044.9,6.06]
[1742411088969,4.89045,2044.8,2044.7,0.8137]
[1742411089276,4.89045,2044.8,2044.6,6.06]
[1742411090148,4.89122,2044.5,2044.3,6.8928]
[1742411090875,4.89086,2044.7,2044.4,0.55]
[1742411091167,4.89042,2044.9,2044.4,0.55]
[1742411091368,4.8905,2044.8,2044.4,0.55]
[1742411091570,9.78119,2044.8,2044.4,0.55]
[1742411091775,4.89094,2044.6,2044.4,0.55]
[1742411092076,4.89041,2044.9,2044.4,0.55]
[1742411092231,4.88943,2045.3,2044.6,0.55]
[1742411092434,4.88943,2045.3,2045.0,0.55]
[1742411092668,4.88969,2045.2,2045.0,0.55]
[1742411092842,4.88969,2045.2,2044.9,0.8225]
[1742411092843,4.88997,2045.0,2044.8,0.55]
[1742411093234,4.89021,2044.9,2044.8,0.55]
[1742411093834,4.89045,2044.8,2044.6,0.8232]
[1742411094059,4.89069,2044.7,2044.6,6.8832]
[1742411094263,4.89045,2044.8,2044.6,6.06]
[1742411094665,4.89069,2044.7,2044.6,6.61]
[1742411094876,4.89069,2044.7,2044.6,6.06]
[1742411095057,4.89141,2044.4,2044.1,6.06]
[1742411095261,4.89117,2044.5,2044.2,0.55]
[1742411095456,4.89117,2044.5,2044.1,6.06]
[1742411095457,4.89142,2044.4,2044.1,6.06]
[1742411095656,4.89175,2044.3,2044.1,6.06]
[1742411096049,9.78351,2044.3,2044.1,6.06]
[1742411096249,4.89151,2044.4,2044.2,0.55]
[1742411097185,4.89164,2044.3,2044.1,6.06]
[1742411097680,4.89188,2044.2,2044.1,6.06]
[1742411098370,4.89227,2044.1,2043.7,6.8317]
[1742411098590,3.0,2044.3,2043.7,6.8317]
[1742411098903,4.89276,2043.9,2043.8,0.55]
[1742411099764,4.89284,2043.8,2043.7,0.7717]
[1742411099965,4.89332,2043.6,2043.5,6.06]
[1742411100209,4.89374,2043.5,2043.1,1.20076413]
[1742411100386,4.89309,2043.7,2043.2,6.06]
[1742411100594,4.89284,2043.8,2043.2,6.06]
[1742411100794,4.89252,2044.0,2043.5,0.7673]
[1742411101010,0.489151,2044.4,2043.7,0.55]
[1742411101011,4.89283,2043.9,2043.7,0.55]
[1742411101369,4.89284,2043.8,2043.7,0.55]
[1742411101692,4.89284,2043.8,2043.6,6.06]
[1742411101900,4.89265,2043.9,2043.7,0.55]
[1742411102196,4.89218,2044.1,2043.9,0.55]
[1742411102507,4.89236,2044.0,2043.9,0.55]
[1742411103390,4.8926,2043.9,2043.8,6.06]
[1742411103596,5.870577,2044.1,2043.8,6.06]
[1742411103809,4.89217,2044.1,2043.9,0.55]
[1742411103980,9.7845,2044.1,2043.9,0.55]
[1742411104186,4.89217,2044.1,2043.9,0.55]
[1742411104590,4.89236,2044.0,2043.8,6.06]
[1742411104777,4.8926,2043.9,2043.8,6.06]
[1742411105178,9.78482,2044.0,2043.8,6.06]
[1742411105529,4.89203,2044.2,2043.9,0.55]
[1742411106021,4.8919,2044.2,2044.1,0.55]
[1742411106197,4.8919,2044.2,2044.1,6.61]
[1742411106721,9.78298,2044.4,2044.1,0.55]
[1742411106924,4.89119,2044.5,2044.1,0.55]
[1742411107127,4.89049,2044.8,2044.3,0.55]
[1742411107295,1.105049,2044.7,2044.3,0.55]
[1742411107494,4.89016,2045.0,2044.5,0.55]
[1742411107710,4.89093,2044.6,2044.5,0.55]
[1742411107877,4.89117,2044.5,2044.4,6.06]
[1742411108279,4.89212,2044.1,2044.0,0.7543]
[1742411108497,4.89332,2043.6,2043.5,0.82]
[1742411108831,5.871962,2043.6,2043.1,0.7893]
[1742411108990,4.89428,2043.2,2043.1,0.7893]
[1742411109189,4.89383,2043.4,2043.1,0.7893]
[1742411109626,0.978642,2043.6,2043.1,0.7893]
[1742411109807,4.89399,2043.4,2043.1,0.7893]
[1742411109993,5.872012,2043.6,2043.1,0.7893]
[1742411110326,4.89428,2043.2,2043.0,6.06]
[1742411110685,4.895,2042.9,2042.8,0.7738]
[1742411110886,4.89524,2042.8,2042.6,0.8026]
[1742411111100,9.79068,2042.8,2042.6,0.8026]
[1742411111297,4.89493,2043.0,2042.6,0.8026]
[1742411111533,4.89428,2043.2,2042.6,0.8026]
[1742411111749,0.489428,2043.1,2042.6,0.8026]
[1742411112038,4.89612,2042.5,2042.3,0.8234]
[1742411112238,4.8962,2042.4,2042.3,0.8234]
[1742411112446,4.89646,2042.3,2042.1,0.0735228]
[1742411112739,4.89668,2042.2,2042.1,0.0735228]
[1742411113439,5.875994,2042.2,2042.1,0.0735228]
[1742411114030,4.89668,2042.2,2042.1,0.0735228]
[1742411114353,8.66155,2042.7,2042.2,0.55]
[1742411114648,4.89584,2042.6,2042.2,0.55]
[1742411114852,4.89582,2042.6,2042.2,0.55]
[1742411115020,4.89574,2042.6,2042.2,0.55]
[1742411115227,4.89615,2042.5,2042.2,0.55]
[1742411115428,4.89648,2042.3,2042.1,0.8534228]
[1742411115624,4.89668,2042.2,2042.1,0.0735228]
[1742411116251,0.979176,2042.5,2042.2,0.55]
[1742411116453,4.89533,2042.8,2042.2,0.55]
[1742411116656,4.89517,2042.9,2042.4,0.55]
[1742411116852,0.489428,2043.1,2042.4,0.55]
[1742411117016,4.89478,2043.0,2042.1,6.2325228]
[1742411117222,5.72492,2042.7,2042.1,0.0735228]
[1742411117417,4.89562,2042.7,2042.2,0.55]
[1742411117732,4.89668,2042.2,2042.1,0.0735228]
[1742411117921,4.89633,2042.4,2042.1,0.0735228]
[1742411118120,4.89589,2042.6,2042.2,0.55]
[1742411118439,4.89644,2042.3,2042.1,6.1335228]
[1742411118649,4.89644,2042.3,2042.1,0.0735228]
[1742411118957,4.89668,2042.2,2042.1,0.0735228]
[1742411119262,4.89644,2042.3,2042.1,0.0735228]
[1742411119412,3.979113,2042.6,2042.1,0.0735228]
[1742411119618,3.979113,2042.6,2042.2,0.55]
[1742411119619,4.89581,2042.6,2042.2,0.55]
[1742411119818,4.89574,2042.6,2042.2,1.3648]
[1742411120051,4.89574,2042.6,2042.2,7.4248]
[1742411120356,4.895,2042.9,2042.2,7.4248]
[1742411120656,4.89566,2042.7,2042.2,7.4248]
[1742411120859,4.89629,2042.4,2042.2,6.06]
[1742411121081,7.89668,2042.2,2042.1,2.8e-06]
[1742411121245,11.13134852,2042.2,2042.1,2.8e-06]
[1742411121441,10.13482304,2042.2,2042.1,2.8e-06]
[1742411121642,4.89668,2042.2,2042.1,2.8e-06]
[1742411121842,4.89649,2042.3,2042.1,2.8e-06]
[1742411122043,4.89596,2042.5,2042.2,0.55]
[1742411122466,4.89644,2042.3,2042.1,6.8401028]
[1742411122673,4.89668,2042.2,2042.1,6.0600028]
[1742411123082,5.875992,2042.2,2042.1,2.8e-06]
[1742411123748,4.89668,2042.2,2042.1,2.8e-06]
[1742411124344,0.8253,2042.5,2042.1,2.8e-06]
[1742411124544,4.89657,2042.3,2042.1,2.8e-06]
[1742411124760,4.89668,2042.2,2042.1,2.8e-06]
[1742411125288,3.0,2042.6,2042.2,0.55]
[1742411125459,4.89644,2042.3,2042.2,0.55]
[1742411125645,4.89624,2042.4,2042.2,0.55]
[1742411125992,4.89557,2042.7,2042.2,1.21100028]
[1742411126197,4.89631,2042.4,2042.2,0.55]
[1742411126501,9.79172,2042.6,2042.2,0.55]
[1742411126652,4.89598,2042.5,2042.2,0.55]
[1742411126853,4.89549,2042.7,2042.2,0.55]
[1742411127053,4.89574,2042.6,2042.2,0.55]
[1742411127681,4.89554,2042.7,2042.4,0.55]
[1742411128056,3.0,2043.0,2042.4,0.55]
[1742411128268,4.89546,2042.8,2042.5,6.06]
[1742411128673,9.79091,2042.8,2042.5,6.06]
[1742411128872,4.89572,2042.6,2042.5,6.61]
[1742411129157,8.385292,2042.6,2042.5,6.06]
[1742411129695,4.89668,2042.2,2042.1,2.8e-06]
[1742411130182,8.71398,2042.2,2042.1,2.8e-06]
[1742411130385,14.87098,2042.2,2042.1,2.8e-06]
[1742411131208,14.4032123,2042.2,2042.1,2.8e-06]
[1742411131499,10.5859123,2042.2,2042.1,2.8e-06]
[1742411132183,12.62377553,2042.2,2042.1,2.8e-06]
[1742411132496,10.5859123,2042.2,2042.1,2.8e-06]
[1742411132699,10.68004178,2042.2,2042.1,2.8e-06]
[1742411133204,0.09412948,2042.2,2042.1,2.8e-06]
[1742411133355,0.09412948,2042.2,2042.1,6.0600028]
[1742411133562,0.09412948,2042.2,2042.1,6.6100028]
[1742411133883,4.89467,2043.1,2042.4,0.8219]
[1742411134104,4.89443,2043.2,2042.6,0.55]
[1742411134401,4.89405,2043.3,2042.6,0.55]
[1742411134601,4.89406,2043.3,2042.8,0.55]
[1742411134757,4.89366,2043.5,2042.8,0.55]
[1742411134957,4.8926,2043.9,2043.1,0.7981]
[1742411135202,4.89326,2043.7,2043.3,0.55]
[1742411135408,0.63404186,2044.6,2043.6,0.7981]
[1742411135554,0.7983,2044.8,2043.8,3.55]
[1742411135760,0.825,2045.6,2044.2,0.55]
[1742411135954,3.23466852,2045.4,2044.4,0.55]
[1742411136173,4.89093,2044.6,2044.5,6.06]
[1742411136373,9.78157,2044.7,2044.5,6.06]
[1742411136573,4.89093,2044.6,2044.5,6.06]
[1742411136807,4.89072,2044.7,2044.5,6.06]
[1742411136990,4.89141,2044.4,2044.3,6.06]
[1742411137920,4.89122,2044.5,2044.3,6.06]
[1742411138125,4.89038,2044.9,2044.3,6.06]
[1742411138414,4.89054,2044.8,2044.3,6.06]
[1742411139216,4.89141,2044.4,2044.3,6.06]
[1742411139684,5.869673,2044.4,2044.3,6.06]
[1742411140010,4.89236,2044.0,2043.9,6.06]
[1742411140197,4.89213,2044.1,2043.9,6.06]
[1742411140383,4.89207,2044.2,2043.9,6.06]
[1742411140588,3.7582,2044.6,2043.9,6.06]
[1742411140804,4.89224,2044.1,2043.9,6.06]
[1742411141132,4.89284,2043.8,2043.5,6.06]
[1742411141330,4.89265,2043.9,2043.5,6.06]
[1742411141831,8.50177852,2044.5,2043.5,6.06]
[1742411141990,4.89093,2044.6,2043.7,0.7609]
[1742411142188,4.89082,2044.7,2044.2,0.55]
[1742411142416,4.89045,2044.8,2044.3,6.06]
[1742411142625,4.89122,2044.5,2044.3,6.06]
[1742411143129,4.89141,2044.4,2044.3,6.06]
[1742411143292,4.89122,2044.5,2044.3,6.06]
[1742411143625,5.380342,2044.5,2044.3,6.06]
[1742411143790,4.89141,2044.4,2044.3,6.06]
[1742411144529,0.07226845,2044.4,2044.3,6.06]
[1742411144846,6.9171,2045.0,2044.3,6.06]
[1742411144847,4.8909,2044.7,2044.3,6.06]
[1742411145126,4.89141,2044.4,2044.3,6.06]
[1742411145616,4.96358244,2044.4,2044.3,6.06]
[1742411145822,4.8926,2043.9,2043.8,0.7845]
[1742411145989,4.89205,2044.2,2043.8,0.7845]
[1742411146200,0.07169682,2043.9,2043.8,0.7845]
[1742411146413,4.89252,2044.0,2043.8,0.7845]
[1742411146630,0.07180181,2043.9,2043.8,0.7845]
[1742411146833,0.07180181,2043.9,2043.8,2.01895]
[1742411146998,3.0,2044.9,2043.9,0.55]
[1742411147198,0.56321084,2045.7,2044.3,0.7779]
[1742411147506,4.8897,2045.2,2044.6,0.55]
[1742411147836,4.88986,2045.1,2044.7,6.06]
[1742411148039,4.88923,2045.4,2044.7,7.04379]
[1742411148208,4.88924,2045.4,2044.9,0.7779]
[1742411148538,4.88938,2045.3,2044.9,0.7779]
[1742411148764,4.8888,2045.5,2044.9,0.7779]
[1742411149062,4.88903,2045.4,2044.9,6.9249]
[1742411149224,4.88865,2045.6,2045.0,0.55]
[1742411149426,4.88851,2045.7,2045.0,0.55]
[1742411149619,0.8187,2046.2,2045.0,0.55]
[1742411149620,4.88885,2045.5,2045.0,0.55]
[1742411149820,4.88938,2045.3,2044.9,7.67239]
[1742411150034,4.88798,2045.9,2044.9,7.67239]
[1742411150237,4.88944,2045.3,2044.9,3.7779]
[1742411150456,4.88938,2045.3,2044.9,3.7779]
[1742411150846,8.377038,2045.8,2044.9,3.7779]
[1742411151059,4.88961,2045.2,2044.9,3.7779]
[1742411151359,4.8894,2045.3,2044.9,3.7779]
[1742411151519,4.88911,2045.4,2044.9,4.77039]
[1742411151720,4.88943,2045.3,2044.9,4.77039]
[1742411151920,4.88762,2046.0,2045.1,0.8202]
[1742411152159,4.88775,2046.0,2045.2,0.59888279]
[1742411152459,4.8885,2045.7,2045.3,6.9652]
[1742411152623,4.88878,2045.5,2045.3,6.9652]
[1742411152828,4.88901,2045.4,2045.3,0.8202]
[1742411153053,4.88878,2045.5,2045.3,0.8202]
[1742411153361,4.88951,2045.2,2045.0,0.7621]
[1742411153545,4.88916,2045.4,2045.0,0.7621]
[1742411153723,4.88926,2045.3,2045.0,0.7621]
[1742411153930,4.88878,2045.5,2045.0,0.7621]
[1742411154130,4.88882,2045.5,2045.1,0.55]
[1742411154339,4.88878,2045.5,2045.0,1.84412629]
[1742411154539,9.77864,2045.3,2045.0,0.7621]
[1742411154735,4.88892,2045.5,2045.0,0.7621]
[1742411154939,4.88849,2045.7,2045.1,0.55]
[1742411155159,4.88849,2045.7,2045.3,0.7661]
[1742411155464,4.8889,2045.5,2045.3,0.7661]
[1742411155825,4.88901,2045.4,2045.3,0.7661]
[1742411156488,9.77791,2045.5,2045.3,0.7661]
[1742411156777,9.77783,2045.5,2045.3,0.7661]
[1742411156980,4.8889,2045.5,2045.3,0.7661]
[1742411157160,4.88845,2045.7,2045.3,0.7661]
[1742411157479,4.88901,2045.4,2045.3,0.7661]
[1742411157786,4.88951,2045.2,2044.9,6.50816295]
[1742411157934,4.88951,2045.2,2045.0,0.8049]
[1742411158260,4.88973,2045.1,2045.0,0.8049]
[1742411158457,0.6067422,2045.2,2044.7,0.8049]
[1742411158658,4.88996,2045.1,2044.7,0.8049]
[1742411158837,4.89045,2044.8,2044.7,0.8049]
[1742411159036,4.89043,2044.9,2044.1,6.14]
[1742411159262,4.89063,2044.8,2044.2,0.8256]
[1742411159452,4.89134,2044.5,2044.2,0.8256]
[1742411159651,0.0577175,2044.4,2044.2,4.88369695]
[1742411159892,4.89071,2044.7,2044.2,4.88369695]
[1742411160049,0.05746724,2044.3,2044.2,4.18713695]
[1742411160244,4.89085,2044.7,2044.2,1.18713695]
[1742411160439,9.892,2045.2,2044.2,1.18713695]
[1742411160440,4.89155,2044.4,2044.2,0.8256]
[1742411160685,4.94851961,2044.6,2044.2,0.8256]
[1742411160977,4.94919791,2044.3,2044.2,0.8256]
[1742411161186,4.89129,2044.5,2044.2,0.8256]
[1742411161393,4.94879156,2044.3,2044.2,0.8256]
[1742411161556,0.752,2045.2,2044.2,1.82206]
[1742411161759,0.05689057,2044.3,2044.2,2.37206]
[1742411161961,4.89024,2044.9,2044.3,0.55]
[1742411162155,4.88994,2045.1,2044.3,0.55]
[1742411162369,0.05779436,2044.8,2044.3,0.57389212]
[1742411162570,4.89032,2044.9,2044.4,0.55]
[1742411162793,0.05810744,2044.7,2044.4,0.55]
[1742411162991,0.05702435,2044.8,2044.6,0.55]
[1742411163193,4.88938,2045.3,2044.8,0.55]
[1742411163493,4.88959,2045.2,2044.8,1.04125949]
[1742411163651,4.88889,2045.5,2044.8,1.04125949]
[1742411163857,4.88865,2045.6,2045.0,0.55]
[1742411164201,4.88865,2045.6,2045.0,6.689]
[1742411164401,4.88833,2045.7,2045.0,6.689]
[1742411164701,4.88882,2045.5,2045.1,0.74543]
[1742411164870,6.9059,2046.1,2045.2,0.55]
[1742411165073,4.88912,2045.4,2045.1,3.74543]
[1742411165395,9.77832,2045.4,2045.1,3.74543]
[1742411165591,4.8894,2045.3,2045.0,6.139]
[1742411165757,4.88854,2045.6,2044.9,0.7653]
[1742411165962,4.88941,2045.3,2045.0,0.04889496]
[1742411166153,4.88968,2045.2,2044.9,0.7653]
[1742411166358,4.88934,2045.3,2044.9,0.7653]
[1742411166558,4.88919,2045.4,2045.0,0.55]
[1742411166863,4.8889,2045.5,2045.0,0.55]
[1742411167263,4.88946,2045.3,2044.9,0.7653]
[1742411167456,4.88977,2045.1,2044.9,0.7653]
[1742411167655,9.77925,2045.2,2044.9,0.7653]
[1742411167855,4.88979,2045.1,2044.9,0.7653]
[1742411168072,4.88997,2045.0,2044.9,0.7653]
[1742411168402,4.88912,2045.4,2044.9,1.7923492]
[1742411168702,4.88842,2045.7,2045.0,0.59888998]
[1742411168869,4.88911,2045.4,2045.1,6.137]
[1742411169266,4.88874,2045.6,2045.1,6.137]
[1742411169461,19.58802,2046.3,2045.2,3.59888532]
[1742411169663,4.88849,2045.7,2045.3,0.7723]
[1742411169968,4.8881,2045.8,2045.3,1.81823]
[1742411170201,4.88774,2046.0,2045.4,0.55]
[1742411170561,4.88763,2046.0,2045.4,0.55]
[1742411170762,4.88688,2046.3,2045.3,1.81823]
[1742411170763,4.8889,2045.5,2045.3,0.7723]
[1742411170963,4.88901,2045.4,2045.3,0.7723]
[1742411171175,4.88898,2045.5,2045.3,0.7723]
[1742411171382,4.88901,2045.4,2045.3,0.7723]
[1742411172318,4.88898,2045.5,2045.0,0.55]
[1742411172319,4.88949,2045.2,2045.0,0.7958]
[1742411172813,4.8901,2045.0,2044.7,0.7569]
[1742411173018,9.134,2045.8,2044.7,0.7569]
[1742411173019,4.88966,2045.2,2044.7,0.7569]
[1742411173183,4.88927,2045.3,2044.8,0.55]
[1742411173383,4.88958,2045.2,2044.8,0.36441084]
[1742411173593,4.88983,2045.1,2044.7,0.7569]
[1742411173790,4.88983,2045.1,2044.7,1.50099]
[1742411173991,4.88958,2045.2,2044.8,0.55]
[1742411174191,4.88863,2045.6,2045.0,0.55]
[1742411174388,4.88916,2045.4,2045.0,6.684]
[1742411174593,0.04962099,2045.5,2045.0,6.684]
[1742411174888,0.04621236,2045.4,2045.1,0.74449]
[1742411175306,4.88879,2045.5,2045.1,0.74449]
[1742411175514,4.88786,2045.9,2045.0,6.134]
[1742411175515,4.88943,2045.3,2045.0,6.134]
[1742411175826,4.88973,2045.1,2045.0,6.134]
[1742411176121,4.93585714,2045.1,2045.0,6.134]
[1742411176724,0.04612714,2045.1,2044.4,6.9199]
[1742411176886,4.89066,2044.8,2044.4,6.9199]